fUSD/lending_fUSD_20241223
["ID","MTS","AMOUNT","RATE_DAILY","PERIOD"]
[346417337,1734952248459,-762.28,0.00019178,2]
[346417338,1734952248469,-500.0,0.00019178,2]
[346417339,1734952248479,-500.0,0.00019178,2]
[346417340,1734952248488,-714.3,0.00019178,2]
[346417341,1734952248498,-1286.43,0.00019178,2]
[346417342,1734952248507,-500.0,0.00019178,2]
[346417343,1734952248518,-500.0,0.00019178,2]
[346417344,1734952248527,-500.0,0.00019178,2]
[346417345,1734952248537,-500.0,0.00019178,2]
[346417346,1734952248547,-1669.23,0.00019178,2]
[346417347,1734952248556,-968.82,0.00019178,2]
[346417348,1734952248566,-500.0,0.00019178,2]
[346417349,1734952248576,-500.0,0.00019178,2]
[346417350,1734952248585,-500.0,0.00019178,2]
[346417351,1734952248595,-500.0,0.00019178,2]
[346417352,1734952248605,-500.0,0.00019178,2]
[346417353,1734952248616,-500.0,0.00019178,2]
[346417354,1734952248626,-2131.01,0.00019178,2]
[346417355,1734952248636,-849.38,0.00019178,2]
[346417356,1734952248645,-500.0,0.00019178,2]
[346417357,1734952248655,-500.0,0.00019178,2]
[346417358,1734952248667,-500.0,0.00019178,2]
[346417359,1734952248677,-500.0,0.00019178,2]
[346417360,1734952248686,-2482.03,0.00019178,2]
[346417361,1734952248696,-500.0,0.00019178,2]
[346417362,1734952248706,-500.0,0.00019178,2]
[346417363,1734952248716,-500.0,0.00019178,2]
[346417364,1734952248726,-1774.14,0.00019178,2]
[346417365,1734952248736,-500.0,0.00019178,2]
[346417366,1734952248747,-500.0,0.00019178,2]
[346417367,1734952248758,-505.16500102,0.00019178,2]
[346417368,1734952248769,-500.0,0.00019178,2]
[346417369,1734952248780,-547.33327527,0.00019178,2]
[346417370,1734952248791,-500.0,0.00019178,2]
[346417371,1734952248802,-311.57003454,0.00019178,2]
[346417372,1734952248812,-500.0,0.00019178,2]
[346417373,1734952248823,-500.0,0.00019178,2]
[346417374,1734952248834,-500.0,0.00019178,2]
[346417375,1734952248844,-500.0,0.00019178,2]
[346417376,1734952248855,-837.75,0.00019178,2]
[346417377,1734952248866,-500.0,0.00019178,2]
[346417378,1734952248877,-500.0,0.00019178,2]
[346417379,1734952248887,-756.37,0.00019178,2]
[346417380,1734952248897,-2346.56,0.00019178,2]
[346417381,1734952248907,-500.0,0.00019178,2]
[346417382,1734952248920,-500.0,0.00019178,2]
[346417383,1734952248930,-500.0,0.00019178,2]
[346417384,1734952248940,-500.0,0.00019178,2]
[346417385,1734952248950,-500.0,0.00019178,2]
[346417386,1734952248960,-500.0,0.00019178,2]
[346417387,1734952248970,-500.0,0.00019178,2]
[346417388,1734952248980,-505.2357037,0.00019178,2]
[346417389,1734952248990,-500.0,0.00019178,2]
[346417390,1734952249000,-1076.89,0.00019178,2]
[346417391,1734952249010,-632.53,0.00019178,2]
[346417392,1734952249020,-500.0,0.00019178,2]
[346417393,1734952249030,-521.26,0.00019178,2]
[346417394,1734952249040,-500.0,0.00019178,2]
[346417395,1734952249049,-500.0,0.00019178,2]
[346417396,1734952249059,-500.0,0.00019178,2]
[346417397,1734952249069,-204.06017505,0.00019178,2]
[346417398,1734952249079,-1070.88,0.00019178,2]
[346417399,1734952249088,-500.0,0.00019178,2]
[346417400,1734952249098,-500.0,0.00019178,2]
[346417401,1734952249107,-500.0,0.00019178,2]
[346417402,1734952249117,-880.75,0.00019178,2]
[346417403,1734952249127,-500.0,0.00019178,2]
[346417404,1734952249136,-500.0,0.00019178,2]
[346417405,1734952249145,-500.0,0.00019178,2]
[346417406,1734952249155,-500.0,0.00019178,2]
[346417407,1734952249165,-508.83,0.00019178,2]
[346417408,1734952249175,-1826.94,0.00019178,2]
[346417409,1734952249185,-500.0,0.00019178,2]
[346417410,1734952249195,-500.0,0.00019178,2]
[346417411,1734952249204,-500.0,0.00019178,2]
[346417412,1734952249214,-500.0,0.00019178,2]
[346417413,1734952249223,-500.0,0.00019178,2]
[346417414,1734952249233,-500.0,0.00019178,2]
[346417415,1734952249247,-500.0,0.00019178,2]
[346417416,1734952249257,-500.0,0.00019178,2]
[346417417,1734952249266,-500.0,0.00019178,2]
[346417418,1734952249276,-629.26,0.00019178,2]
[346417419,1734952249286,-500.0,0.00019178,2]
[346417420,1734952249295,-500.0,0.00019178,2]
[346417421,1734952249305,-500.0,0.00019178,2]
[346417422,1734952249315,-500.0,0.00019178,2]
[346417423,1734952249325,-1797.9,0.00019178,2]
[346417424,1734952249336,-500.0,0.00019178,2]
[346417425,1734952249346,-500.0,0.00019178,2]
[346417426,1734952249355,-500.0,0.00019178,2]
[346417427,1734952249365,-500.0,0.00019178,2]
[346417428,1734952249374,-500.0,0.00019178,2]
[346417429,1734952249383,-1218.04,0.00019178,2]
[346417430,1734952249393,-500.0,0.00019178,2]
[346417431,1734952249402,-500.0,0.00019178,2]
[346417432,1734952249412,-500.0,0.00019178,2]
[346417433,1734952249422,-500.0,0.00019178,2]
[346417434,1734952249432,-500.0,0.00019178,2]
[346417435,1734952249442,-500.0,0.00019178,2]
[346417436,1734952249451,-995.34,0.00019178,2]
[346417437,1734952249460,-500.0,0.00019178,2]
[346417438,1734952249469,-1072.51,0.00019178,2]
[346417439,1734952249479,-500.0,0.00019178,2]
[346417440,1734952249488,-500.0,0.00019178,2]
[346417441,1734952249498,-1454.83,0.00019178,2]
[346417442,1734952249508,-552.66,0.00019178,2]
[346417443,1734952249517,-500.0,0.00019178,2]
[346417444,1734952249527,-500.0,0.00019178,2]
[346417445,1734952249618,-500.0,0.00019178,2]
[346417446,1734952249628,-925.24,0.00019178,2]
[346417447,1734952249637,-988.77,0.00019178,2]
[346417448,1734952249647,-500.0,0.00019178,2]
[346417449,1734952249656,-500.0,0.00019178,2]
[346417450,1734952249667,-500.0,0.00019178,2]
[346417451,1734952249677,-500.0,0.00019178,2]
[346417452,1734952249687,-557.69929643,0.00019178,2]
[346417453,1734952249696,-684.52,0.00019178,2]
[346417454,1734952249705,-500.0,0.00019178,2]
[346417455,1734952249714,-1609.18,0.00019178,2]
[346417456,1734952249724,-600.24,0.00019178,2]
[346417457,1734952249733,-650.54,0.00019178,2]
[346417458,1734952249742,-500.0,0.00019178,2]
[346417459,1734952249751,-500.0,0.00019178,2]
[346417460,1734952249760,-500.0,0.00019178,2]
[346417461,1734952249770,-500.0,0.00019178,2]
[346417462,1734952249779,-500.0,0.00019178,2]
[346417463,1734952249788,-514.56,0.00019178,2]
[346417464,1734952249797,-758.96,0.00019178,2]
[346417465,1734952249806,-500.0,0.00019178,2]
[346417466,1734952249816,-779.24,0.00019178,2]
[346417467,1734952249825,-515.0,0.00019178,2]
[346417468,1734952249834,-500.0,0.00019178,2]
[346417469,1734952249844,-527.45950687,0.00019178,2]
[346417470,1734952249853,-500.0,0.00019178,2]
[346417471,1734952249862,-500.0,0.00019178,2]
[346417472,1734952249872,-500.0,0.00019178,2]
[346417473,1734952249881,-500.0,0.00019178,2]
[346417474,1734952249890,-1399.51,0.00019178,2]
[346417475,1734952249900,-500.0,0.00019178,2]
[346417476,1734952249910,-500.0,0.00019178,2]
[346417477,1734952249920,-500.0,0.00019178,2]
[346417478,1734952249930,-500.0,0.00019178,2]
[346417479,1734952249939,-500.0,0.00019178,2]
[346417480,1734952249948,-500.0,0.00019178,2]
[346417481,1734952249957,-500.0,0.00019178,2]
[346417482,1734952249966,-681.75,0.00019178,2]
[346417483,1734952249975,-709.28,0.00019178,2]
[346417484,1734952249985,-500.0,0.00019178,2]
[346417485,1734952249994,-2459.11,0.00019178,2]
[346417486,1734952250003,-500.0,0.00019178,2]
[346417487,1734952250012,-1732.37,0.00019178,2]
[346417488,1734952250021,-509.07895675,0.00019178,2]
[346417489,1734952250030,-500.0,0.00019178,2]
[346417490,1734952250039,-2247.33,0.00019178,2]
[346417491,1734952250049,-500.0,0.00019178,2]
[346417492,1734952250058,-500.0,0.00019178,2]
[346417493,1734952250067,-500.0,0.00019178,2]
[346417494,1734952250077,-1100.67,0.00019178,2]
[346417495,1734952250086,-500.0,0.00019178,2]
[346417496,1734952250096,-500.0,0.00019178,2]
[346417497,1734952250105,-500.0,0.00019178,2]
[346417498,1734952250114,-500.0,0.00019178,2]
[346417499,1734952250123,-1762.45,0.00019178,2]
[346417500,1734952250132,-500.0,0.00019178,2]
[346417501,1734952250141,-534.89,0.00019178,2]
[346417502,1734952250151,-510.08607187,0.00019178,2]
[346417503,1734952250160,-500.0,0.00019178,2]
[346417504,1734952250170,-500.0,0.00019178,2]
[346417505,1734952250179,-500.0,0.00019178,2]
[346417506,1734952250189,-500.0,0.00019178,2]
[346417507,1734952250198,-500.0,0.00019178,2]
[346417508,1734952250207,-802.19,0.00019178,2]
[346417509,1734952250216,-500.0,0.00019178,2]
[346417510,1734952250225,-500.0,0.00019178,2]
[346417511,1734952250235,-500.0,0.00019178,2]
[346417512,1734952250247,-885.32,0.00019178,2]
[346417513,1734952250257,-500.0,0.00019178,2]
[346417514,1734952250266,-500.0,0.00019178,2]
[346417515,1734952250275,-500.0,0.00019178,2]
[346417516,1734952250286,-500.0,0.00019178,2]
[346417517,1734952250296,-500.0,0.00019178,2]
[346417518,1734952250305,-921.25,0.00019178,2]
[346417519,1734952250315,-500.0,0.00019178,2]
[346417520,1734952250324,-500.0,0.00019178,2]
[346417521,1734952250333,-500.0,0.00019178,2]
[346417522,1734952250343,-500.0,0.00019178,2]
[346417523,1734952250352,-500.0,0.00019178,2]
[346417524,1734952250361,-1974.5,0.00019178,2]
[346417525,1734952250370,-500.0,0.00019178,2]
[346417526,1734952250379,-500.0,0.00019178,2]
[346417527,1734952250388,-1801.75,0.00019178,2]
[346417528,1734952250397,-500.0,0.00019178,2]
[346417529,1734952250406,-1107.48,0.00019178,2]
[346417530,1734952250416,-501.0378675,0.00019178,2]
[346417531,1734952250425,-1981.65,0.00019178,2]
[346417532,1734952250434,-500.0,0.00019178,2]
[346417533,1734952250447,-500.0,0.00019178,2]
[346417534,1734952250456,-500.0,0.00019178,2]
[346417535,1734952250465,-532.84,0.00019178,2]
[346417536,1734952250474,-500.0,0.00019178,2]
[346417537,1734952250484,-500.0,0.00019178,2]
[346417538,1734952250493,-1192.43,0.00019178,2]
[346417539,1734952250503,-500.0,0.00019178,2]
[346417540,1734952250512,-500.0,0.00019178,2]
[346417541,1734952250521,-1045.14,0.00019178,2]
[346417542,1734952250530,-500.0,0.00019178,2]
[346417543,1734952250539,-500.0,0.00019178,2]
[346417544,1734952250547,-500.0,0.00019178,2]
[346417545,1734952250556,-500.0,0.00019178,2]
[346417546,1734952250566,-500.0,0.00019178,2]
[346417547,1734952250575,-500.0,0.00019178,2]
[346417548,1734952250586,-500.0,0.00019178,2]
[346417549,1734952250595,-500.0,0.00019178,2]
[346417550,1734952250604,-500.0,0.00019178,2]
[346417551,1734952250613,-500.0,0.00019178,2]
[346417552,1734952250622,-500.0,0.00019178,2]
[346417553,1734952250631,-500.0,0.00019178,2]
[346417554,1734952250640,-500.0,0.00019178,2]
[346417555,1734952250649,-500.0,0.00019178,2]
[346417556,1734952250659,-307.66301561,0.00019178,2]
[346417557,1734952250668,-500.0,0.00019178,2]
[346417558,1734952250677,-500.0,0.00019178,2]
[346417559,1734952250686,-500.0,0.00019178,2]
[346417560,1734952250695,-985.97,0.00019178,2]
[346417561,1734952250704,-869.62,0.00019178,2]
[346417562,1734952250714,-500.0,0.00019178,2]
[346417563,1734952250723,-3857.5,0.00019178,2]
[346417564,1734952250732,-500.0,0.00019178,2]
[346417565,1734952250742,-500.0,0.00019178,2]
[346417566,1734952250751,-500.0,0.00019178,2]
[346417567,1734952250760,-500.0,0.00019178,2]
[346417568,1734952250770,-1078.64,0.00019178,2]
[346417569,1734952250779,-2107.06,0.00019178,2]
[346417570,1734952250788,-500.0,0.00019178,2]
[346417571,1734952250797,-906.19,0.00019178,2]
[346417572,1734952250806,-500.0,0.00019178,2]
[346417573,1734952250815,-500.0,0.00019178,2]
[346417574,1734952250825,-500.0,0.00019178,2]
[346417575,1734952250834,-760.87,0.00019178,2]
[346417576,1734952250843,-500.0,0.00019178,2]
[346417577,1734952250852,-1016.1,0.00019178,2]
[346417578,1734952250861,-500.0,0.00019178,2]
[346417579,1734952250870,-500.0,0.00019178,2]
[346417580,1734952250879,-500.0,0.00019178,2]
[346417581,1734952250888,-500.0,0.00019178,2]
[346417582,1734952250898,-500.0,0.00019178,2]
[346417583,1734952250907,-1118.58,0.00019178,2]
[346417584,1734952250917,-500.0,0.00019178,2]
[346417585,1734952250926,-500.0,0.00019178,2]
[346417586,1734952250935,-500.0,0.00019178,2]
[346417587,1734952250944,-502.34481657,0.00019178,2]
[346417588,1734952250953,-253.61608121,0.00019178,2]
[346417589,1734952250963,-1194.43,0.00019178,2]
[346417590,1734952250972,-500.46311983,0.00019178,2]
[346417591,1734952250981,-761.96,0.00019178,2]
[346417592,1734952250990,-500.0,0.00019178,2]
[346417593,1734952251000,-500.0,0.00019178,2]
[346417594,1734952251009,-500.0,0.00019178,2]
[346417595,1734952251018,-331.46914649,0.00019178,2]
[346417596,1734952251027,-500.0,0.00019178,2]
[346417597,1734952251036,-500.0,0.00019178,2]
[346417598,1734952251045,-523.58,0.00019178,2]
[346417599,1734952251055,-500.0,0.00019178,2]
[346417600,1734952251064,-500.0,0.00019178,2]
[346417601,1734952251073,-500.0,0.00019178,2]
[346417602,1734952251082,-500.0,0.00019178,2]
[346417603,1734952251091,-500.0,0.00019178,2]
[346417604,1734952251100,-500.0,0.00019178,2]
[346417605,1734952251109,-831.21,0.00019178,2]
[346417606,1734952251118,-500.0,0.00019178,2]
[346417607,1734952251127,-500.0,0.00019178,2]
[346417608,1734952251136,-1083.94,0.00019178,2]
[346417609,1734952251145,-347.96455661,0.00019178,2]
[346417610,1734952251154,-500.0,0.00019178,2]
[346417611,1734952251163,-607.02,0.00019178,2]
[346417612,1734952251172,-640.58,0.00019178,2]
[346417613,1734952251182,-500.0,0.00019178,2]
[346417614,1734952251191,-500.0,0.00019178,2]
[346417615,1734952251200,-500.0,0.00019178,2]
[346417616,1734952251209,-500.0,0.00019178,2]
[346417617,1734952251219,-500.0,0.00019178,2]
[346417618,1734952251227,-500.0,0.00019178,2]
[346417619,1734952251238,-500.0,0.00019178,2]
[346417620,1734952251248,-500.0,0.00019178,2]
[346417621,1734952251258,-538.88,0.00019178,2]
[346417622,1734952251266,-2020.44,0.00019178,2]
[346417623,1734952251275,-598.81,0.00019178,2]
[346417624,1734952251286,-609.61741514,0.00019178,2]
[346417625,1734952251295,-1058.19,0.00019178,2]
[346417626,1734952251304,-500.0,0.00019178,2]
[346417627,1734952251314,-540.6,0.00019178,2]
[346417628,1734952251323,-500.0,0.00019178,2]
[346417629,1734952251332,-500.0,0.00019178,2]
[346417630,1734952251341,-710.14,0.00019178,2]
[346417631,1734952251350,-500.0,0.00019178,2]
[346417632,1734952251359,-500.0,0.00019178,2]
[346417633,1734952251367,-1182.0,0.00019178,2]
[346417634,1734952251376,-500.0,0.00019178,2]
[346417635,1734952251385,-500.0,0.00019178,2]
[346417636,1734952251394,-500.0,0.00019178,2]
[346417637,1734952251404,-500.0,0.00019178,2]
[346417638,1734952251413,-500.0,0.00019178,2]
[346417639,1734952251423,-500.0,0.00019178,2]
[346417640,1734952251432,-623.33,0.00019178,2]
[346417641,1734952251440,-500.0,0.00019178,2]
[346417642,1734952251449,-575.45,0.00019178,2]
[346417643,1734952251458,-1045.46,0.00019178,2]
[346417644,1734952251467,-504.91413338,0.00019178,2]
[346417645,1734952251475,-500.0,0.00019178,2]
[346417646,1734952251484,-500.0,0.00019178,2]
[346417647,1734952251493,-500.0,0.00019178,2]
[346417648,1734952251502,-500.0,0.00019178,2]
[346417649,1734952251511,-500.0,0.00019178,2]
[346417650,1734952251520,-500.0,0.00019178,2]
[346417651,1734952251529,-500.0,0.00019178,2]
[346417652,1734952251538,-537.53,0.00019178,2]
[346417653,1734952251547,-1995.69,0.00019178,2]
[346417654,1734952251555,-500.0,0.00019178,2]
[346417655,1734952251565,-549.07,0.00019178,2]
[346417656,1734952251574,-500.0,0.00019178,2]
[346417657,1734952251583,-581.12,0.00019178,2]
[346417658,1734952251592,-500.0,0.00019178,2]
[346417659,1734952251601,-1430.29,0.00019178,2]
[346417660,1734952251610,-652.47,0.00019178,2]
[346417661,1734952251619,-500.0,0.00019178,2]
[346417662,1734952251628,-500.0,0.00019178,2]
[346417663,1734952251638,-1027.6,0.00019178,2]
[346417664,1734952251646,-1245.8,0.00019178,2]
[346417665,1734952251655,-500.0,0.00019178,2]
[346417666,1734952251665,-500.0,0.00019178,2]
[346417667,1734952251674,-500.0,0.00019178,2]
[346417668,1734952251683,-1964.38,0.00019178,2]
[346417669,1734952251692,-500.0,0.00019178,2]
[346417670,1734952251701,-708.71,0.00019178,2]
[346417671,1734952251710,-500.0,0.00019178,2]
[346417672,1734952251719,-1479.97,0.00019178,2]
[346417673,1734952251729,-500.0,0.00019178,2]
[346417674,1734952251738,-500.0,0.00019178,2]
[346417675,1734952251747,-505.97046056,0.00019178,2]
[346417676,1734952251756,-500.0,0.00019178,2]
[346417677,1734952251766,-500.0,0.00019178,2]
[346417678,1734952251775,-1196.89,0.00019178,2]
[346417679,1734952251784,-500.0,0.00019178,2]
[346417680,1734952251793,-443.24857185,0.00019178,2]
[346417681,1734952251803,-500.0,0.00019178,2]
[346417682,1734952251812,-519.57949585,0.00019178,2]
[346417683,1734952251821,-2060.79,0.00019178,2]
[346417684,1734952251831,-1137.02,0.00019178,2]
[346417685,1734952251840,-500.0,0.00019178,2]
[346417686,1734952251850,-247.94914577,0.00019178,2]
[346417687,1734952251859,-1222.49,0.00019178,2]
[346417688,1734952251869,-500.0,0.00019178,2]
[346417689,1734952251878,-500.0,0.00019178,2]
[346417690,1734952251888,-869.45,0.00019178,2]
[346417691,1734952251897,-500.0,0.00019178,2]
[346417692,1734952251907,-500.0,0.00019178,2]
[346417693,1734952251919,-500.0,0.00019178,2]
[346417694,1734952251928,-500.0,0.00019178,2]
[346417695,1734952251937,-200.0,0.00019178,2]
[346417696,1734952251946,-500.0,0.00019178,2]
[346417697,1734952251956,-500.0,0.00019178,2]
[346417698,1734952251965,-500.0,0.00019178,2]
[346417699,1734952251974,-500.0,0.00019178,2]
[346417700,1734952251983,-500.0,0.00019178,2]
[346417701,1734952251993,-1616.51,0.00019178,2]
[346417702,1734952252002,-622.62,0.00019178,2]
[346417703,1734952252011,-500.0,0.00019178,2]
[346417704,1734952252020,-500.0,0.00019178,2]
[346417705,1734952252029,-500.0,0.00019178,2]
[346417706,1734952252038,-501.7378449,0.00019178,2]
[346417707,1734952252047,-500.0,0.00019178,2]
[346417708,1734952252056,-2423.9,0.00019178,2]
[346417709,1734952252065,-500.0,0.00019178,2]
[346417710,1734952252074,-503.49220211,0.00019178,2]
[346417711,1734952252083,-500.0,0.00019178,2]
[346417712,1734952252092,-500.0,0.00019178,2]
[346417713,1734952252101,-1404.79,0.00019178,2]
[346417714,1734952252110,-500.0,0.00019178,2]
[346417715,1734952252119,-504.28,0.00019178,2]
[346417716,1734952252128,-500.0,0.00019178,2]
[346417717,1734952252137,-500.0,0.00019178,2]
[346417718,1734952252146,-500.0,0.00019178,2]
[346417719,1734952252155,-500.0,0.00019178,2]
[346417720,1734952252166,-2289.68,0.00019178,2]
[346417721,1734952252175,-500.0,0.00019178,2]
[346417722,1734952252184,-500.0,0.00019178,2]
[346417723,1734952252193,-500.0,0.00019178,2]
[346417724,1734952252202,-1541.17,0.00019178,2]
[346417725,1734952252211,-667.13,0.00019178,2]
[346417726,1734952252220,-500.0,0.00019178,2]
[346417727,1734952252229,-500.0,0.00019178,2]
[346417728,1734952252240,-500.0,0.00019178,2]
[346417729,1734952252250,-503.72671544,0.00019178,2]
[346417730,1734952252259,-500.0,0.00019178,2]
[346417731,1734952252268,-500.0,0.00019178,2]
[346417732,1734952252278,-2642.56,0.00019178,2]
[346417733,1734952252287,-500.0,0.00019178,2]
[346417734,1734952252296,-500.0,0.00019178,2]
[346417735,1734952252304,-567.95,0.00019178,2]
[346417736,1734952252315,-500.0,0.00019178,2]
[346417737,1734952252323,-1142.61,0.00019178,2]
[346417738,1734952252332,-500.0,0.00019178,2]
[346417739,1734952252341,-500.0,0.00019178,2]
[346417740,1734952252350,-500.0,0.00019178,2]
[346417741,1734952252359,-602.73,0.00019178,2]
[346417742,1734952252367,-500.0,0.00019178,2]
[346417743,1734952252376,-500.0,0.00019178,2]
[346417744,1734952252385,-1027.68,0.00019178,2]
[346417745,1734952252394,-563.71,0.00019178,2]
[346417746,1734952252403,-500.0,0.00019178,2]
[346417747,1734952252413,-3035.16,0.00019178,2]
[346417748,1734952252422,-500.0,0.00019178,2]
[346417749,1734952252431,-1732.61,0.00019178,2]
[346417750,1734952252441,-500.0,0.00019178,2]
[346417751,1734952252450,-561.05,0.00019178,2]
[346417752,1734952252458,-500.0,0.00019178,2]
[346417753,1734952252467,-500.0,0.00019178,2]
[346417754,1734952252476,-500.0,0.00019178,2]
[346417755,1734952252485,-500.0,0.00019178,2]
[346417756,1734952252494,-1206.14,0.00019178,2]
[346417757,1734952252503,-1834.49,0.00019178,2]
[346417758,1734952252512,-500.0,0.00019178,2]
[346417759,1734952252521,-746.97,0.00019178,2]
[346417760,1734952252529,-514.79177244,0.00019178,2]
[346417761,1734952252538,-500.0,0.00019178,2]
[346417762,1734952252547,-500.0,0.00019178,2]
[346417763,1734952252556,-500.0,0.00019178,2]
[346417764,1734952252564,-598.01,0.00019178,2]
[346417765,1734952252573,-500.0,0.00019178,2]
[346417766,1734952252582,-500.0,0.00019178,2]
[346417767,1734952252591,-500.0,0.00019178,2]
[346417768,1734952252600,-3364.56,0.00019178,2]
[346417769,1734952252608,-500.0,0.00019178,2]
[346417770,1734952252617,-500.0,0.00019178,2]
[346417771,1734952252626,-1510.35,0.00019178,2]
[346417772,1734952252635,-500.0,0.00019178,2]
[346417773,1734952252644,-503.34037155,0.00019178,2]
[346417774,1734952252653,-500.0,0.00019178,2]
[346417775,1734952252663,-559.71,0.00019178,2]
[346417776,1734952252673,-1276.72,0.00019178,2]
[346417777,1734952252682,-500.0,0.00019178,2]
[346417778,1734952252691,-500.0,0.00019178,2]
[346417779,1734952252700,-5557.06,0.00019178,2]
[346417780,1734952252709,-724.47,0.00019178,2]
[346417781,1734952252719,-500.0,0.00019178,2]
[346417782,1734952252727,-500.0,0.00019178,2]
[346417783,1734952252737,-829.61,0.00019178,2]
[346417784,1734952252746,-6090.83,0.00019178,2]
[346417785,1734952252755,-530.55956157,0.00019178,2]
[346417786,1734952252764,-500.0,0.00019178,2]
[346417787,1734952252773,-500.0,0.00019178,2]
[346417788,1734952252781,-837.2,0.00019178,2]
[346417789,1734952252791,-500.0,0.00019178,2]
[346417790,1734952252799,-738.58,0.00019178,2]
[346417791,1734952252808,-500.0,0.00019178,2]
[346417792,1734952252817,-522.48426861,0.00019178,2]
[346417793,1734952252826,-307.10578361,0.00019178,2]
[346417794,1734952252835,-1211.78,0.00019178,2]
[346417795,1734952252845,-345.28293266,0.00019178,2]
[346417796,1734952253627,-11876.39998308,0.00019178,2]
[346417797,1734952253639,-10816.61358908,0.00019178,2]
[346417798,1734952254311,-448.931,0.00018647,2]
[346417799,1734952254321,-12742.68699893,0.00019178,2]
[346417800,1734952254344,-896.96649625,0.00019178,2]
[346417801,1734952254353,-1086.64,0.00019178,2]
[346417802,1734952254362,-500.0,0.00019178,2]
[346417803,1734952254371,-515.01,0.00019178,2]
[346417804,1734952254380,-365.15610373,0.00019178,2]
[346417805,1734952254391,-134.84389627,0.00019178,2]
[346417806,1734952254400,-500.0,0.00019178,2]
[346417807,1734952254409,-11.43610373,0.00019178,2]
[346417808,1734952254505,-488.56389627,0.00019178,2]
[346417809,1734952254514,-4485.68,0.00019178,2]
[346417810,1734952254523,-500.0,0.00019178,2]
[346417811,1734952254532,-500.0,0.00019178,2]
[346417812,1734952254541,-1199.2,0.00019178,2]
[346417813,1734952254550,-500.0,0.00019178,2]
[346417814,1734952254559,-3278.40805575,0.00019178,2]
[346417815,1734952254571,-353.526063,0.00019178,2]
[346417816,1734952254582,-1858.75779157,0.00019178,2]
[346417817,1734952254593,-316.929995,0.00019178,2]
[346417818,1734952254604,-1926.14,0.00019178,2]
[346417819,1734952254615,-457.974,0.00019178,2]
[346417822,1734952611093,155.59,0.00010137,2]
[346417852,1734953432364,-292.27120378,0.000139,5]
[346417853,1734953432492,-182.72879622,0.000139,5]
[346417854,1734953432502,-473.57,0.00014962,2]
[346417855,1734953432511,-637.46796089,0.00015,2]
[346417856,1734953432519,-8934.92624289,0.00016874,2]
[346417857,1734953432617,-1336.11030399,0.00016874,2]
[346417858,1734953432628,-430.68063875,0.00016874,2]
[346417859,1734953432640,-905.59839347,0.00016874,2]
[346417860,1734953432659,-5283.2244209,0.00016874,2]
[346417861,1734953432668,-282.84139311,0.00016988,2]
[346417862,1734953432677,-504.5,0.00017015,2]
[346417863,1734953432686,-164.79,0.00017036,2]
[346417864,1734953432695,-213.67,0.0001708,2]
[346417865,1734953432704,-150.0,0.00017088,2]
[346417866,1734953432713,-150.0,0.00017088,2]
[346417867,1734953432722,-150.0,0.00017088,2]